[Event "Titled Tuesday Blitz December 20 Early 2022"]
[White "MrChampion_Coach"]
[Black "Cag, Ceyda"]
[BlackFideId "34571477"]
[WhiteElo "2580"]
[BlackElo "2157"]
[Result "1-0"]
[Round "01"]
[TimeControl "180+2"]
[Date "2022.12.20"]
[WhiteClock "0:00:44"]
[BlackClock "0:00:15"]

1. e4 {[%clk 0:02:50]}  c5 {[%clk 0:02:59]} 2. Nf3 {[%clk 0:02:49]}  d6 {[%clk 0:03:00]} 3. d4 {[%clk 0:02:46]}  cxd4 {[%clk 0:03:01]} 4. Nxd4 {[%clk 0:02:47]}  Nf6 {[%clk 0:03:02]} 5. Nc3 {[%clk 0:02:47]}  a6 {[%clk 0:03:02]} 6. Bg5 {[%clk 0:02:43]}  e5 {[%clk 0:03:02]} 7. Nf5 {[%clk 0:02:42]}  Bxf5 {[%clk 0:03:01]} 8. exf5 {[%clk 0:02:43]}  Be7 {[%clk 0:03:01]} 9. Bxf6 {[%clk 0:02:40]}  Bxf6 {[%clk 0:02:55]} 10. Bc4 {[%clk 0:02:40]}  Nd7 {[%clk 0:02:22]} 11. O-O {[%clk 0:02:29]}  Nb6 {[%clk 0:02:18]} 12. Bb3 {[%clk 0:02:27]}  O-O {[%clk 0:02:17]} 13. Qf3 {[%clk 0:02:26]}  Qc7 {[%clk 0:02:14]} 14. Rad1 {[%clk 0:02:21]}  Rad8 {[%clk 0:02:13]} 15. Rd3 {[%clk 0:02:05]}  Kh8 {[%clk 0:01:52]} 16. Rfd1 {[%clk 0:01:53]}  g6 {[%clk 0:01:48]} 17. Ne4 {[%clk 0:01:50]}  Qe7 {[%clk 0:01:28]} 18. Nxd6 {[%clk 0:01:49]}  Kg7 {[%clk 0:01:18]} 19. Ne4 {[%clk 0:01:22]}  Rxd3 {[%clk 0:01:11]} 20. Rxd3 {[%clk 0:01:23]}  Rd8 {[%clk 0:01:02]} 21. g4 {[%clk 0:01:13]}  h6 {[%clk 0:00:58]} 22. fxg6 {[%clk 0:01:04]}  Rxd3 {[%clk 0:00:57]} 23. cxd3 {[%clk 0:01:04]}  fxg6 {[%clk 0:00:43]} 24. Nxf6 {[%clk 0:01:01]}  Qxf6 {[%clk 0:00:44]} 25. Qxb7+ {[%clk 0:01:01]}  Kf8 {[%clk 0:00:41]} 26. Qxa6 {[%clk 0:00:55]}  Qc6 {[%clk 0:00:31]} 27. a4 {[%clk 0:00:50]}  h5 {[%clk 0:00:17]} 28. a5 {[%clk 0:00:46]}  Qc1+ {[%clk 0:00:16]} 29. Kg2 {[%clk 0:00:46]}  Nd7 {[%clk 0:00:14]} 30. Qd6+ {[%clk 0:00:44]}  Ke8 {[%clk 0:00:13]} 31. Qxg6+ {[%clk 0:00:43]}  Kd8 {[%clk 0:00:13]} 32. Qg8+ {[%clk 0:00:44]}  Kc7 {[%clk 0:00:14]} 33. Qc4+ {[%clk 0:00:44]}  Kd8 {[%clk 0:00:14]} 34. Qxc1 {[%clk 0:00:44]}  Ke7 {[%clk 0:00:15]} 1-0


[Site "https://www.chess.com"]

[Event "Titled Tuesday Blitz December 20 Early 2022"]
[White "Mykola-Bortnyk"]
[Black "CristobalBlanco"]
[WhiteElo "2919"]
[BlackElo "2476"]
[Result "1-0"]
[Round "01"]
[TimeControl "180+2"]
[Date "2022.12.20"]
[WhiteClock "0:00:55"]
[BlackClock "0:00:16"]

1. e4 {[%clk 0:03:00]}  c5 {[%clk 0:02:59]} 2. c3 {[%clk 0:03:00]}  Nf6 {[%clk 0:02:59]} 3. e5 {[%clk 0:03:00]}  Nd5 {[%clk 0:02:59]} 4. Nf3 {[%clk 0:03:01]}  Nc6 {[%clk 0:02:59]} 5. Bc4 {[%clk 0:02:59]}  e6 {[%clk 0:02:52]} 6. O-O {[%clk 0:02:57]}  Nb6 {[%clk 0:02:51]} 7. Bb3 {[%clk 0:02:53]}  c4 {[%clk 0:02:47]} 8. Bc2 {[%clk 0:02:52]}  g6 {[%clk 0:02:45]} 9. b3 {[%clk 0:02:43]}  Bg7 {[%clk 0:02:40]} 10. Qe2 {[%clk 0:02:36]}  Qc7 {[%clk 0:02:34]} 11. Re1 {[%clk 0:02:36]}  cxb3 {[%clk 0:02:14]} 12. axb3 {[%clk 0:02:36]}  Nd5 {[%clk 0:02:00]} 13. Ba3 {[%clk 0:02:24]}  h6 {[%clk 0:01:53]} 14. Bd6 {[%clk 0:02:17]}  Qd8 {[%clk 0:01:49]} 15. Na3 {[%clk 0:02:18]}  Nc7 {[%clk 0:01:18]} 16. Nc4 {[%clk 0:01:37]}  Bf8 {[%clk 0:01:15]} 17. Qe4 {[%clk 0:01:36]}  Rg8 {[%clk 0:01:09]} 18. h4 {[%clk 0:01:22]}  b5 {[%clk 0:01:08]} 19. Na5 {[%clk 0:01:17]}  Nxa5 {[%clk 0:00:54]} 20. Bxc7 {[%clk 0:01:16]}  Qxc7 {[%clk 0:00:51]} 21. Qxa8 {[%clk 0:01:17]}  Nc6 {[%clk 0:00:51]} 22. Be4 {[%clk 0:01:11]}  Bc5 {[%clk 0:00:49]} 23. Nd4 {[%clk 0:01:06]}  Ke7 {[%clk 0:00:20]} 24. Nxc6+ {[%clk 0:01:02]}  dxc6 {[%clk 0:00:19]} 25. Qxc6 {[%clk 0:01:03]}  Qxc6 {[%clk 0:00:19]} 26. Bxc6 {[%clk 0:01:04]}  a6 {[%clk 0:00:19]} 27. d4 {[%clk 0:01:04]}  Bb6 {[%clk 0:00:19]} 28. Red1 {[%clk 0:01:01]}  Rd8 {[%clk 0:00:19]} 29. g3 {[%clk 0:01:00]}  g5 {[%clk 0:00:17]} 30. hxg5 {[%clk 0:01:00]}  hxg5 {[%clk 0:00:18]} 31. Kg2 {[%clk 0:01:01]}  b4 {[%clk 0:00:18]} 32. cxb4 {[%clk 0:00:58]}  Bxd4 {[%clk 0:00:18]} 33. Ra5 {[%clk 0:00:58]}  Bb6 {[%clk 0:00:18]} 34. Rxd8 {[%clk 0:00:57]}  Kxd8 {[%clk 0:00:17]} 35. Ra2 {[%clk 0:00:57]}  Kc7 {[%clk 0:00:18]} 36. Be8 {[%clk 0:00:57]}  Bb7+ {[%clk 0:00:16]} 37. f3 {[%clk 0:00:57]}  Bd4 {[%clk 0:00:16]} 38. Bxf7 {[%clk 0:00:56]}  Bxe5 {[%clk 0:00:17]} 39. Bxe6 {[%clk 0:00:55]}  Kd6 {[%clk 0:00:17]} 40. Bf5 {[%clk 0:00:55]}  Bc3 {[%clk 0:00:16]} 41. Be4 {[%clk 0:00:54]}  Bc8 {[%clk 0:00:16]} 42. Rc2 {[%clk 0:00:55]} 1-0


[Site "https://www.chess.com"]

[Event "Titled Tuesday Blitz December 20 Early 2022"]
[White "Nakamura, Hikaru"]
[Black "JordanLoyd2020"]
[WhiteFideId "2016192"]
[WhiteElo "2775"]
[BlackElo "2526"]
[Result "1-0"]
[Round "01"]
[TimeControl "180+2"]
[Date "2022.12.20"]
[WhiteClock "0:02:22"]
[BlackClock "0:01:04"]

1. Nf3 {[%clk 0:02:58]}  Nf6 {[%clk 0:02:58]} 2. g3 {[%clk 0:02:58]}  g6 {[%clk 0:02:58]} 3. Bg2 {[%clk 0:02:58]}  Bg7 {[%clk 0:02:59]} 4. O-O {[%clk 0:02:58]}  O-O {[%clk 0:03:00]} 5. d3 {[%clk 0:02:57]}  d6 {[%clk 0:03:01]} 6. Nbd2 {[%clk 0:02:56]}  c5 {[%clk 0:03:00]} 7. e4 {[%clk 0:02:56]}  Nc6 {[%clk 0:03:01]} 8. Re1 {[%clk 0:02:56]}  Rb8 {[%clk 0:03:01]} 9. h3 {[%clk 0:02:55]}  Bd7 {[%clk 0:03:01]} 10. Nf1 {[%clk 0:02:54]}  b5 {[%clk 0:03:01]} 11. Bg5 {[%clk 0:02:54]}  a5 {[%clk 0:03:01]} 12. Qc1 {[%clk 0:02:52]}  Re8 {[%clk 0:03:00]} 13. Bh6 {[%clk 0:02:52]}  Bh8 {[%clk 0:03:00]} 14. Ne3 {[%clk 0:02:52]}  a4 {[%clk 0:02:48]} 15. a3 {[%clk 0:02:44]}  Qc8 {[%clk 0:02:37]} 16. Kh2 {[%clk 0:02:44]}  Nd4 {[%clk 0:02:27]} 17. Nd2 {[%clk 0:02:41]}  b4 {[%clk 0:02:22]} 18. Ndc4 {[%clk 0:02:40]}  b3 {[%clk 0:02:14]} 19. c3 {[%clk 0:02:39]}  Nb5 {[%clk 0:02:02]} 20. f4 {[%clk 0:02:38]}  Bc6 {[%clk 0:01:50]} 21. Qd2 {[%clk 0:02:34]}  e6 {[%clk 0:01:41]} 22. e5 {[%clk 0:02:31]}  dxe5 {[%clk 0:01:38]} 23. fxe5 {[%clk 0:02:31]}  Nd5 {[%clk 0:01:33]} 24. Ng4 {[%clk 0:02:31]}  f5 {[%clk 0:01:27]} 25. exf6 {[%clk 0:02:25]}  Nxf6 {[%clk 0:01:27]} 26. Nxf6+ {[%clk 0:02:24]}  Bxf6 {[%clk 0:01:27]} 27. Rf1 {[%clk 0:02:25]}  Bh8 {[%clk 0:01:12]} 28. Qf4 {[%clk 0:02:23]}  Rb7 {[%clk 0:01:04]} 29. Bxc6 {[%clk 0:02:22]} 1-0


[Site "https://www.chess.com"]

[Event "Titled Tuesday Blitz December 20 Early 2022"]
[White "Nemegejas"]
[Black "Chesstrainer1"]
[WhiteElo "2883"]
[BlackElo "2467"]
[Result "1-0"]
[Round "01"]
[TimeControl "180+2"]
[Date "2022.12.20"]
[WhiteClock "0:01:31"]
[BlackClock "0:00:01"]

1. Nf3 {[%clk 0:02:54]}  Nf6 {[%clk 0:02:59]} 2. b3 {[%clk 0:02:54]}  g6 {[%clk 0:02:57]} 3. Bb2 {[%clk 0:02:55]}  Bg7 {[%clk 0:02:58]} 4. e3 {[%clk 0:02:55]}  O-O {[%clk 0:02:58]} 5. c4 {[%clk 0:02:56]}  c5 {[%clk 0:02:58]} 6. Nc3 {[%clk 0:02:56]}  b6 {[%clk 0:02:59]} 7. d4 {[%clk 0:02:53]}  cxd4 {[%clk 0:02:56]} 8. Qxd4 {[%clk 0:02:53]}  Bb7 {[%clk 0:02:54]} 9. Be2 {[%clk 0:02:53]}  Nc6 {[%clk 0:02:36]} 10. Qd2 {[%clk 0:02:52]}  d6 {[%clk 0:02:27]} 11. O-O {[%clk 0:02:52]}  Rc8 {[%clk 0:02:14]} 12. Rfc1 {[%clk 0:02:52]}  Ng4 {[%clk 0:02:11]} 13. Rab1 {[%clk 0:02:50]}  a6 {[%clk 0:02:07]} 14. h3 {[%clk 0:02:47]}  Nge5 {[%clk 0:02:07]} 15. Nxe5 {[%clk 0:02:46]}  Nxe5 {[%clk 0:02:07]} 16. Nd5 {[%clk 0:02:44]}  e6 {[%clk 0:02:03]} 17. Nf4 {[%clk 0:02:39]}  Qe7 {[%clk 0:01:59]} 18. Ba3 {[%clk 0:02:39]}  Rfd8 {[%clk 0:01:59]} 19. Rd1 {[%clk 0:02:39]}  Bf8 {[%clk 0:01:58]} 20. Qd4 {[%clk 0:02:36]}  Qc7 {[%clk 0:01:55]} 21. Rbc1 {[%clk 0:02:31]}  Bc6 {[%clk 0:01:53]} 22. Nd5 {[%clk 0:02:28]}  Qb7 {[%clk 0:01:48]} 23. Nf6+ {[%clk 0:02:19]}  Kg7 {[%clk 0:01:47]} 24. f4 {[%clk 0:02:18]}  Kxf6 {[%clk 0:01:12]} 25. fxe5+ {[%clk 0:02:17]}  dxe5 {[%clk 0:01:11]} 26. Qh4+ {[%clk 0:02:11]}  Kg7 {[%clk 0:00:51]} 27. Rxd8 {[%clk 0:02:06]}  Bxa3 {[%clk 0:00:49]} 28. Rxc8 {[%clk 0:02:01]}  Bxc1 {[%clk 0:00:47]} 29. Qd8 {[%clk 0:02:01]}  Bxe3+ {[%clk 0:00:47]} 30. Kh2 {[%clk 0:02:00]}  Bxg2 {[%clk 0:00:48]} 31. Qf8+ {[%clk 0:01:46]}  Kf6 {[%clk 0:00:47]} 32. Qh8+ {[%clk 0:01:42]}  Kf5 {[%clk 0:00:36]} 33. Bg4+ {[%clk 0:01:42]}  Kf4 {[%clk 0:00:34]} 34. Qf6+ {[%clk 0:01:41]}  Ke4 {[%clk 0:00:32]} 35. Rd8 {[%clk 0:01:32]}  Bf4+ {[%clk 0:00:24]} 36. Kxg2 {[%clk 0:01:32]}  Ke3+ {[%clk 0:00:25]} 37. Kg1 {[%clk 0:01:32]}  Qe4 {[%clk 0:00:09]} 38. Qh4 {[%clk 0:01:32]}  Bh2+ {[%clk 0:00:01]} 39. Kxh2 {[%clk 0:01:31]} 1-0


[Site "https://www.chess.com"]

[Event "Titled Tuesday Blitz December 20 Early 2022"]
[White "Nyambe, Maketo"]
[Black "Monticone, Sonia"]
[WhiteFideId "8700915"]
[BlackFideId "836613"]
[WhiteElo "2091"]
[BlackElo "1887"]
[Result "0-1"]
[Round "01"]
[TimeControl "180+2"]
[Date "2022.12.20"]
[WhiteClock "0:00:51"]
[BlackClock "0:01:53"]

1. g4 {[%clk 0:02:55]}  d5 {[%clk 0:02:58]} 2. Bg2 {[%clk 0:02:55]}  c6 {[%clk 0:02:59]} 3. g5 {[%clk 0:02:47]}  e5 {[%clk 0:02:59]} 4. d4 {[%clk 0:02:47]}  Nd7 {[%clk 0:02:54]} 5. h4 {[%clk 0:02:41]}  Bd6 {[%clk 0:02:51]} 6. h5 {[%clk 0:02:30]}  Ne7 {[%clk 0:02:46]} 7. c4 {[%clk 0:02:22]}  dxc4 {[%clk 0:02:43]} 8. Nc3 {[%clk 0:02:23]}  O-O {[%clk 0:02:36]} 9. Nf3 {[%clk 0:02:20]}  Nf5 {[%clk 0:02:31]} 10. e4 {[%clk 0:02:01]}  Nxd4 {[%clk 0:02:30]} 11. Nxd4 {[%clk 0:02:02]}  exd4 {[%clk 0:02:31]} 12. Qxd4 {[%clk 0:02:02]}  Ne5 {[%clk 0:02:22]} 13. O-O {[%clk 0:01:41]}  Nf3+ {[%clk 0:02:22]} 14. Bxf3 {[%clk 0:01:38]}  Bh2+ {[%clk 0:02:22]} 15. Kxh2 {[%clk 0:01:39]}  Qxd4 {[%clk 0:02:23]} 16. Be3 {[%clk 0:01:40]}  Qe5+ {[%clk 0:02:23]} 17. Kg2 {[%clk 0:01:39]}  Be6 {[%clk 0:02:22]} 18. Ne2 {[%clk 0:01:37]}  Rfd8 {[%clk 0:02:16]} 19. Rab1 {[%clk 0:01:35]}  Rd3 {[%clk 0:02:12]} 20. Bf4 {[%clk 0:01:34]}  Qa5 {[%clk 0:02:10]} 21. a3 {[%clk 0:01:28]}  Rad8 {[%clk 0:02:10]} 22. h6 {[%clk 0:01:05]}  gxh6 {[%clk 0:02:03]} 23. gxh6 {[%clk 0:01:04]}  Rxf3 {[%clk 0:01:53]} 24. Kxf3 {[%clk 0:00:57]}  Qh5+ {[%clk 0:01:53]} 25. Kg2 {[%clk 0:00:54]}  Bh3+ {[%clk 0:01:53]} 26. Kg1 {[%clk 0:00:51]}  Qf3 {[%clk 0:01:53]} 0-1


[Site "https://www.chess.com"]

[Event "Titled Tuesday Blitz December 20 Early 2022"]
[White "Ong, Chong Ghee"]
[Black "Vesper, Horst"]
[WhiteFideId "5800145"]
[BlackFideId "24677159"]
[WhiteElo "2307"]
[BlackElo "2028"]
[Result "0-1"]
[Round "01"]
[TimeControl "180+2"]
[Date "2022.12.20"]
[WhiteClock "0:00:02"]
[BlackClock "0:00:13"]

1. d4 {[%clk 0:03:00]}  Nf6 {[%clk 0:02:58]} 2. Bg5 {[%clk 0:03:00]}  d5 {[%clk 0:02:58]} 3. Bxf6 {[%clk 0:03:00]}  exf6 {[%clk 0:02:58]} 4. e3 {[%clk 0:03:01]}  g6 {[%clk 0:02:57]} 5. g3 {[%clk 0:03:01]}  Bd6 {[%clk 0:02:57]} 6. Bg2 {[%clk 0:03:02]}  c6 {[%clk 0:02:57]} 7. Ne2 {[%clk 0:03:02]}  O-O {[%clk 0:02:57]} 8. Nd2 {[%clk 0:03:03]}  Re8 {[%clk 0:02:57]} 9. O-O {[%clk 0:03:03]}  Be6 {[%clk 0:02:51]} 10. Rc1 {[%clk 0:03:00]}  Nd7 {[%clk 0:02:50]} 11. c4 {[%clk 0:03:00]}  dxc4 {[%clk 0:02:40]} 12. Nxc4 {[%clk 0:03:01]}  Bf8 {[%clk 0:02:39]} 13. a3 {[%clk 0:02:56]}  f5 {[%clk 0:02:37]} 14. b4 {[%clk 0:02:55]}  Nf6 {[%clk 0:02:34]} 15. Na5 {[%clk 0:02:54]}  Qd7 {[%clk 0:02:28]} 16. Nf4 {[%clk 0:02:54]}  Nd5 {[%clk 0:02:19]} 17. Nxe6 {[%clk 0:02:54]}  fxe6 {[%clk 0:02:16]} 18. Qb3 {[%clk 0:02:52]}  Rac8 {[%clk 0:02:12]} 19. Rc2 {[%clk 0:02:45]}  b6 {[%clk 0:02:11]} 20. Nc4 {[%clk 0:02:32]}  Bg7 {[%clk 0:02:11]} 21. Rfc1 {[%clk 0:02:29]}  Kh8 {[%clk 0:01:59]} 22. a4 {[%clk 0:02:07]}  c5 {[%clk 0:01:56]} 23. dxc5 {[%clk 0:01:59]}  bxc5 {[%clk 0:01:55]} 24. bxc5 {[%clk 0:01:48]}  Rxc5 {[%clk 0:01:55]} 25. Na3 {[%clk 0:01:39]}  Rxc2 {[%clk 0:01:52]} 26. Rxc2 {[%clk 0:01:36]}  g5 {[%clk 0:01:38]} 27. Bxd5 {[%clk 0:01:35]}  exd5 {[%clk 0:01:38]} 28. Rd2 {[%clk 0:01:29]}  d4 {[%clk 0:01:35]} 29. Qd3 {[%clk 0:01:14]}  f4 {[%clk 0:01:30]} 30. Nb5 {[%clk 0:01:08]}  fxe3 {[%clk 0:01:16]} 31. fxe3 {[%clk 0:01:04]}  a6 {[%clk 0:00:54]} 32. Nxd4 {[%clk 0:01:00]}  Qxa4 {[%clk 0:00:54]} 33. Nf5 {[%clk 0:00:48]}  Bf6 {[%clk 0:00:45]} 34. Qd7 {[%clk 0:00:41]}  Qxd7 {[%clk 0:00:41]} 35. Rxd7 {[%clk 0:00:40]}  a5 {[%clk 0:00:42]} 36. Kf2 {[%clk 0:00:39]}  Ra8 {[%clk 0:00:38]} 37. Rd6 {[%clk 0:00:35]}  Bc3 {[%clk 0:00:22]} 38. Rd3 {[%clk 0:00:34]}  Bb2 {[%clk 0:00:20]} 39. Rd2 {[%clk 0:00:30]}  Rb8 {[%clk 0:00:20]} 40. Ne7 {[%clk 0:00:22]}  a4 {[%clk 0:00:20]} 41. Nc6 {[%clk 0:00:21]}  Rb6 {[%clk 0:00:20]} 42. Na5 {[%clk 0:00:18]}  a3 {[%clk 0:00:19]} 43. Nc4 {[%clk 0:00:18]}  Rb4 {[%clk 0:00:18]} 44. Nxa3 {[%clk 0:00:17]}  Bxa3 {[%clk 0:00:18]} 45. Rd5 {[%clk 0:00:14]}  h6 {[%clk 0:00:17]} 46. h4 {[%clk 0:00:14]}  Rb2+ {[%clk 0:00:16]} 47. Kf3 {[%clk 0:00:14]}  Be7 {[%clk 0:00:15]} 48. Re5 {[%clk 0:00:11]}  Bf6 {[%clk 0:00:15]} 49. Re6 {[%clk 0:00:11]}  Kg7 {[%clk 0:00:15]} 50. hxg5 {[%clk 0:00:09]}  hxg5 {[%clk 0:00:15]} 51. Rc6 {[%clk 0:00:08]}  Rb3 {[%clk 0:00:14]} 52. Ke4 {[%clk 0:00:07]}  Kg6 {[%clk 0:00:13]} 53. g4 {[%clk 0:00:06]}  Rb4+ {[%clk 0:00:13]} 54. Kf3 {[%clk 0:00:06]}  Kf7 {[%clk 0:00:13]} 55. Rc7+ {[%clk 0:00:06]}  Be7 {[%clk 0:00:13]} 56. Rc6 {[%clk 0:00:05]}  Rb3 {[%clk 0:00:13]} 57. Ke4 {[%clk 0:00:04]}  Rb4+ {[%clk 0:00:13]} 58. Kf3 {[%clk 0:00:05]}  Ra4 {[%clk 0:00:14]} 59. Rb6 {[%clk 0:00:04]}  Ra3 {[%clk 0:00:13]} 60. Rb5 {[%clk 0:00:03]}  Ke6 {[%clk 0:00:13]} 61. Rb6+ {[%clk 0:00:03]}  Bd6 {[%clk 0:00:13]} 62. Ke4 {[%clk 0:00:03]}  Ra4+ {[%clk 0:00:13]} 63. Kf3 {[%clk 0:00:03]}  Kd5 {[%clk 0:00:12]} 64. Rb5+ {[%clk 0:00:03]}  Bc5 {[%clk 0:00:12]} 65. Rb1 {[%clk 0:00:02]}  Ra3 {[%clk 0:00:12]} 66. Re1 {[%clk 0:00:03]}  Ke5 {[%clk 0:00:13]} 67. Re2 {[%clk 0:00:01]}  Rb3 {[%clk 0:00:13]} 68. Re1 {[%clk 0:00:02]}  Rb2 {[%clk 0:00:13]} 0-1


[Site "https://www.chess.com"]

[Event "Titled Tuesday Blitz December 20 Early 2022"]
[White "Paspuel, Trosky"]
[Black "Meri-Arabidze"]
[WhiteFideId "3602150"]
[WhiteElo "1721"]
[BlackElo "2730"]
[Result "0-1"]
[Round "01"]
[TimeControl "180+2"]
[Date "2022.12.20"]
[WhiteClock "0:00:42"]
[BlackClock "0:01:55"]

1. c4 {[%clk 0:03:00]}  e5 {[%clk 0:02:57]} 2. g3 {[%clk 0:02:59]}  Nc6 {[%clk 0:02:58]} 3. Bg2 {[%clk 0:02:59]}  g6 {[%clk 0:02:58]} 4. Nc3 {[%clk 0:02:59]}  Bg7 {[%clk 0:02:59]} 5. d3 {[%clk 0:02:55]}  d6 {[%clk 0:02:59]} 6. Nf3 {[%clk 0:02:55]}  Nf6 {[%clk 0:02:59]} 7. O-O {[%clk 0:02:55]}  O-O {[%clk 0:02:59]} 8. Rb1 {[%clk 0:02:55]}  h6 {[%clk 0:02:59]} 9. b4 {[%clk 0:02:53]}  a6 {[%clk 0:03:00]} 10. a4 {[%clk 0:02:52]}  Be6 {[%clk 0:03:00]} 11. b5 {[%clk 0:02:50]}  axb5 {[%clk 0:03:01]} 12. axb5 {[%clk 0:02:49]}  Ne7 {[%clk 0:03:02]} 13. Nd2 {[%clk 0:02:31]}  c6 {[%clk 0:02:58]} 14. Nde4 {[%clk 0:02:23]}  Nxe4 {[%clk 0:02:55]} 15. Nxe4 {[%clk 0:02:22]}  f5 {[%clk 0:02:55]} 16. Nc3 {[%clk 0:02:12]}  e4 {[%clk 0:02:56]} 17. Bb2 {[%clk 0:02:08]}  d5 {[%clk 0:02:56]} 18. bxc6 {[%clk 0:01:58]}  bxc6 {[%clk 0:02:57]} 19. cxd5 {[%clk 0:01:51]}  cxd5 {[%clk 0:02:58]} 20. Nb5 {[%clk 0:01:32]}  Bxb2 {[%clk 0:02:40]} 21. Rxb2 {[%clk 0:01:33]}  Nc6 {[%clk 0:02:40]} 22. dxe4 {[%clk 0:01:20]}  dxe4 {[%clk 0:02:37]} 23. Qxd8 {[%clk 0:01:14]}  Raxd8 {[%clk 0:02:38]} 24. Rc1 {[%clk 0:01:14]}  Ne5 {[%clk 0:02:28]} 25. Nc7 {[%clk 0:00:58]}  Bf7 {[%clk 0:02:26]} 26. Rc5 {[%clk 0:00:58]}  Rd1+ {[%clk 0:02:17]} 27. Bf1 {[%clk 0:00:58]}  Nc4 {[%clk 0:02:15]} 28. Rc2 {[%clk 0:00:49]}  Nd2 {[%clk 0:02:03]} 29. Rxd2 {[%clk 0:00:50]}  Rxd2 {[%clk 0:02:02]} 30. e3 {[%clk 0:00:42]}  Rb8 {[%clk 0:01:56]} 31. Kg2 {[%clk 0:00:42]}  Rbb2 {[%clk 0:01:55]} 0-1


[Site "https://www.chess.com"]

[Event "Titled Tuesday Blitz December 20 Early 2022"]
[White "Patterson, Fheopatrick"]
[Black "Carvalho, Heracles Elieser"]
[WhiteFideId "30939364"]
[BlackFideId "22751114"]
[WhiteElo "1497"]
[BlackElo "1895"]
[Result "1-0"]
[Round "01"]
[TimeControl "180+2"]
[Date "2022.12.20"]
[WhiteClock "0:01:02"]
[BlackClock "0:00:02"]

1. Nf3 {[%clk 0:02:59]}  Nf6 {[%clk 0:03:00]} 2. b3 {[%clk 0:02:59]}  g6 {[%clk 0:03:00]} 3. Bb2 {[%clk 0:03:00]}  Bg7 {[%clk 0:03:01]} 4. g3 {[%clk 0:03:00]}  O-O {[%clk 0:03:01]} 5. Bg2 {[%clk 0:03:00]}  d6 {[%clk 0:03:02]} 6. O-O {[%clk 0:03:01]}  e5 {[%clk 0:03:02]} 7. d3 {[%clk 0:03:01]}  Nbd7 {[%clk 0:03:02]} 8. e4 {[%clk 0:03:01]}  Nc5 {[%clk 0:03:00]} 9. h3 {[%clk 0:03:00]}  a5 {[%clk 0:02:52]} 10. a4 {[%clk 0:02:59]}  Bd7 {[%clk 0:02:52]} 11. Re1 {[%clk 0:02:57]}  Qc8 {[%clk 0:02:51]} 12. Kh2 {[%clk 0:02:57]}  Nh5 {[%clk 0:02:48]} 13. Nbd2 {[%clk 0:02:53]}  f5 {[%clk 0:02:18]} 14. exf5 {[%clk 0:02:53]}  Bxf5 {[%clk 0:02:12]} 15. g4 {[%clk 0:02:42]}  Bxg4 {[%clk 0:02:13]} 16. hxg4 {[%clk 0:02:43]}  Qxg4 {[%clk 0:02:13]} 17. Bh3 {[%clk 0:02:41]}  Qf4+ {[%clk 0:02:06]} 18. Kh1 {[%clk 0:02:35]}  Qh6 {[%clk 0:01:59]} 19. Ng1 {[%clk 0:02:16]}  Nf4 {[%clk 0:01:48]} 20. Re3 {[%clk 0:02:14]}  Qh4 {[%clk 0:01:33]} 21. Qf1 {[%clk 0:01:51]}  Bh6 {[%clk 0:01:25]} 22. Ndf3 {[%clk 0:01:31]}  Qh5 {[%clk 0:01:17]} 23. Nh2 {[%clk 0:01:31]}  Nce6 {[%clk 0:00:54]} 24. Bg4 {[%clk 0:01:26]}  Qh4 {[%clk 0:00:49]} 25. Nf3 {[%clk 0:01:18]}  Qe7 {[%clk 0:00:48]} 26. d4 {[%clk 0:01:17]}  Nd5 {[%clk 0:00:27]} 27. Qh3 {[%clk 0:01:11]}  Nxe3 {[%clk 0:00:16]} 28. Bxe6+ {[%clk 0:01:11]}  Kg7 {[%clk 0:00:16]} 29. dxe5 {[%clk 0:01:05]}  dxe5 {[%clk 0:00:03]} 30. Bxe5+ {[%clk 0:01:04]}  Rf6 {[%clk 0:00:04]} 31. fxe3 {[%clk 0:01:02]}  Rf8 {[%clk 0:00:02]} 1-0


[Site "https://www.chess.com"]

[Event "Titled Tuesday Blitz December 20 Early 2022"]
[White "PavelChernomordik"]
[Black "Mekhitarian, Krikor Sevag"]
[BlackFideId "2107660"]
[WhiteElo "2434"]
[BlackElo "2604"]
[Result "0-1"]
[Round "01"]
[TimeControl "180+2"]
[Date "2022.12.20"]
[WhiteClock "0:00:01"]
[BlackClock "0:00:25"]

1. e4 {[%clk 0:03:00]}  c5 {[%clk 0:02:59]} 2. Nc3 {[%clk 0:02:59]}  Nc6 {[%clk 0:02:54]} 3. Bb5 {[%clk 0:02:58]}  Nd4 {[%clk 0:02:52]} 4. Bc4 {[%clk 0:02:58]}  e6 {[%clk 0:02:50]} 5. Nge2 {[%clk 0:02:57]}  a6 {[%clk 0:02:51]} 6. Nxd4 {[%clk 0:02:56]}  cxd4 {[%clk 0:02:51]} 7. Ne2 {[%clk 0:02:56]}  Bc5 {[%clk 0:02:45]} 8. O-O {[%clk 0:02:49]}  d6 {[%clk 0:02:37]} 9. d3 {[%clk 0:02:47]}  Nf6 {[%clk 0:02:37]} 10. Ng3 {[%clk 0:02:39]}  O-O {[%clk 0:02:33]} 11. f4 {[%clk 0:02:22]}  d5 {[%clk 0:02:33]} 12. Bb3 {[%clk 0:02:20]}  dxe4 {[%clk 0:02:33]} 13. dxe4 {[%clk 0:02:20]}  d3+ {[%clk 0:02:33]} 14. Kh1 {[%clk 0:02:19]}  dxc2 {[%clk 0:02:33]} 15. Qxc2 {[%clk 0:02:19]}  Qe7 {[%clk 0:02:26]} 16. e5 {[%clk 0:02:10]}  Nd7 {[%clk 0:02:24]} 17. f5 {[%clk 0:01:54]}  Nxe5 {[%clk 0:02:23]} 18. f6 {[%clk 0:01:51]}  gxf6 {[%clk 0:02:17]} 19. Ne4 {[%clk 0:01:49]}  Nd7 {[%clk 0:02:17]} 20. Bh6 {[%clk 0:01:42]}  Bd4 {[%clk 0:02:11]} 21. Bxf8 {[%clk 0:01:34]}  Nxf8 {[%clk 0:02:05]} 22. Rad1 {[%clk 0:01:33]}  Be5 {[%clk 0:02:05]} 23. Qf2 {[%clk 0:01:24]}  f5 {[%clk 0:02:03]} 24. Nc5 {[%clk 0:01:23]}  Ng6 {[%clk 0:01:45]} 25. Rfe1 {[%clk 0:01:12]}  Bf6 {[%clk 0:01:22]} 26. Bc2 {[%clk 0:01:07]}  Qc7 {[%clk 0:01:12]} 27. b4 {[%clk 0:01:00]}  b6 {[%clk 0:01:08]} 28. Nd3 {[%clk 0:00:52]}  Bb7 {[%clk 0:01:06]} 29. Bb3 {[%clk 0:00:51]}  Kg7 {[%clk 0:01:06]} 30. Kg1 {[%clk 0:00:48]}  Rd8 {[%clk 0:01:06]} 31. Rc1 {[%clk 0:00:46]}  Qxc1 {[%clk 0:00:49]} 32. Rxc1 {[%clk 0:00:19]}  Bd4 {[%clk 0:00:48]} 33. Rc7 {[%clk 0:00:16]}  Bxf2+ {[%clk 0:00:45]} 34. Kxf2 {[%clk 0:00:15]}  Bd5 {[%clk 0:00:42]} 35. Ke3 {[%clk 0:00:11]}  Bxb3 {[%clk 0:00:37]} 36. axb3 {[%clk 0:00:11]}  Rd5 {[%clk 0:00:37]} 37. Rc6 {[%clk 0:00:09]}  Rb5 {[%clk 0:00:36]} 38. g3 {[%clk 0:00:09]}  Ne7 {[%clk 0:00:36]} 39. Rc4 {[%clk 0:00:07]}  a5 {[%clk 0:00:34]} 40. bxa5 {[%clk 0:00:06]}  bxa5 {[%clk 0:00:35]} 41. Nc5 {[%clk 0:00:06]}  Nd5+ {[%clk 0:00:31]} 42. Kf3 {[%clk 0:00:05]}  Nf6 {[%clk 0:00:30]} 43. h3 {[%clk 0:00:03]}  h5 {[%clk 0:00:30]} 44. Rc3 {[%clk 0:00:02]}  Rb4 {[%clk 0:00:27]} 45. Nd3 {[%clk 0:00:01]}  Rb7 {[%clk 0:00:26]} 46. Ne5 {[%clk 0:00:01]}  Ne4 {[%clk 0:00:25]} 47. Rd3 {[%clk 0:00:01]}  Nc5 {[%clk 0:00:25]} 48. Rc3 {[%clk 0:00:01]}  Rxb3 {[%clk 0:00:25]} 0-1


[Site "https://www.chess.com"]